fUSD/lending_fUSD_20260127
["ID","MTS","AMOUNT","RATE_DAILY","PERIOD"]
[403763332,1769523145994,190.17,0.00014208,2]
[403763333,1769523146029,190.17,0.00014231,2]
[403763334,1769523146074,190.17,0.00014253,2]
[403763335,1769523146112,190.17,0.00014275,2]
[403763336,1769523146150,190.17,0.00014297,2]
[403763337,1769523146189,190.17,0.00014319,2]
[403763338,1769523146227,190.17,0.00014342,2]
[403763339,1769523146265,190.17,0.00014364,2]
[403763340,1769523146307,190.17,0.00014386,2]
[403763341,1769523146344,190.17,0.00014408,2]
[403763342,1769523146385,190.17,0.0001443,2]
[403763343,1769523146424,190.17,0.00014453,2]
[403763344,1769523146465,190.17,0.00014475,2]
[403763345,1769523147968,1259.55186874,0.00013632,2]
[403763346,1769523147991,5926.25093437,0.00013632,2]
[403763347,1769523148012,2664.20719689,0.00013632,2]
[403763348,1769523148365,-2637.88237455,0.00015325,2]
[403763349,1769523148376,-546.51182598,0.00015325,2]
[403763350,1769523148387,-485.01153519,0.00015325,2]
[403763351,1769523148399,-1011.42361408,0.00015325,2]
[403763352,1769523148410,-5948.43064686,0.00015325,2]
[403763353,1769523148420,-11356.06861677,0.00015325,2]
[403763354,1769523148432,-28706.96835375,0.00015325,2]
[403763355,1769523148444,-1597.66266696,0.00015325,2]
[403763356,1769523148455,-2315.37800638,0.00015325,2]
[403763357,1769523148466,-3167.42126143,0.00015325,2]
[403763358,1769523148501,-324.27327818,0.00015325,2]
[403763359,1769523148513,-253.75974854,0.00015325,2]
[403763360,1769523148526,-2878.69273974,0.00015325,2]
[403763361,1769523148922,500.0,0.00014141,2]
[403763362,1769523148958,-18017.02308062,0.00015325,2]
[403763363,1769523148969,-918.78,0.00015325,2]
[403763364,1769523148980,-861.2,0.00015325,2]
[403763365,1769523148991,-163187.39516887,0.00015325,2]
[403763366,1769523149002,-49534.50000005,0.00015325,2]
[403763367,1769523149040,2762.04373748,0.00014053,2]
[403763368,1769523149063,5926.25093437,0.00014053,2]
[403763369,1769523149091,4321.23532815,0.00014053,2]
[403763370,1769523149161,-4574.1801,0.00015325,2]
[403763371,1769523149172,-701677.43698205,0.00015325,2]
[403763372,1769523149181,-33261.7219,0.00015344,2]
[403763373,1769523149191,-1000.0,0.00015344,2]
[403763374,1769523149200,-150.00196148,0.00015401,2]
[403763375,1769523149210,-516.32403348,0.00015443,2]
[403763376,1769523149220,-500.0,0.00015443,2]
[403763377,1769523149229,-500.0,0.00015443,2]
[403763378,1769523149239,-500.0,0.00015443,2]
[403763379,1769523149249,-500.0,0.00015443,2]
[403763380,1769523149259,-500.0,0.00015443,2]
[403763381,1769523149269,-500.0,0.00015443,2]
[403763382,1769523149281,-500.0,0.00015443,2]
[403763383,1769523149292,-500.0,0.00015443,2]
[403763384,1769523149302,-500.0,0.00015443,2]
[403763385,1769523149313,-179.41357912,0.00015443,2]
[403763386,1769523149323,-500.0,0.00015443,2]
[403763387,1769523149333,-500.0,0.00015443,2]
[403763388,1769523149343,-247.44368002,0.00015443,2]
[403763389,1769523149353,-500.0,0.00015443,2]
[403763390,1769523149362,-502.25816038,0.00015443,2]
[403763391,1769523149371,-500.0,0.00015443,2]
[403763392,1769523149392,-500.0,0.00015443,2]
[403763393,1769523149412,-500.0,0.00015443,2]
[403763394,1769523149422,-594.78142777,0.00015443,2]
[403763395,1769523149431,-500.0,0.00015443,2]
[403763396,1769523149440,-500.0,0.00015443,2]
[403763397,1769523149450,-500.0,0.00015443,2]
[403763398,1769523149459,-500.0,0.00015443,2]
[403763399,1769523149468,-500.0,0.00015443,2]
[403763400,1769523149478,-190.77586114,0.00015443,2]
[403763401,1769523149488,-500.0,0.00015443,2]
[403763402,1769523149498,-500.0,0.00015443,2]
[403763403,1769523149508,-642.98,0.00015443,2]
[403763404,1769523149518,-500.0,0.00015443,2]
[403763405,1769523149527,-500.0,0.00015443,2]
[403763406,1769523149537,-500.0,0.00015443,2]
[403763407,1769523149546,-500.0,0.00015443,2]
[403763408,1769523149555,-500.0,0.00015443,2]
[403763409,1769523149564,-503.02582644,0.00015443,2]
[403763410,1769523149574,-500.0,0.00015443,2]
[403763411,1769523149583,-500.0,0.00015443,2]
[403763412,1769523149592,-511.21840013,0.00015443,2]
[403763413,1769523149601,-500.0,0.00015443,2]
[403763414,1769523149610,-500.0,0.00015443,2]
[403763415,1769523149619,-165.99687138,0.00015443,2]
[403763416,1769523149629,-500.0,0.00015443,2]
[403763417,1769523149638,-500.0,0.00015443,2]
[403763418,1769523149647,-500.0,0.00015443,2]
[403763419,1769523149656,-500.0,0.00015443,2]
[403763420,1769523149665,-500.0,0.00015443,2]
[403763421,1769523149674,-500.0,0.00015443,2]
[403763422,1769523149683,-500.0,0.00015443,2]
[403763423,1769523149702,-500.0,0.00015443,2]
[403763424,1769523149711,-500.0,0.00015443,2]
[403763425,1769523149721,-500.0,0.00015443,2]
[403763426,1769523149731,-500.0,0.00015443,2]
[403763427,1769523149741,-500.0,0.00015443,2]
[403763428,1769523149751,-500.0,0.00015443,2]
[403763429,1769523149760,-173.32,0.00015558,2]
[403763430,1769523149769,-1000.0,0.00015918,2]
[403763431,1769523149779,-504.16176982,0.00016373,2]
[403763432,1769523149789,-500.0,0.00016437,2]
[403763433,1769523149799,-500.0,0.00016437,2]
[403763434,1769523149809,-500.0,0.00016438,2]
[403763435,1769523149818,-500.0,0.00016438,2]
[403763436,1769523149827,-500.0,0.00016438,2]
[403763437,1769523149836,-500.0,0.00016438,2]
[403763438,1769523149846,-1000.0,0.00016515,2]
[403763439,1769523149855,-173.32,0.00016928,2]
[403763440,1769523149865,-250.0,0.00017,2]
[403763441,1769523149875,-1000.0,0.00017112,2]
[403763442,1769523149884,-1000.0,0.00017709,2]
[403763443,1769523149893,-296.66962157,0.000179,2]
[403763444,1769523149902,-443.80001123,0.000179,2]
[403763445,1769523149912,-600.4746,0.000179,2]
[403763446,1769523149921,-500.0,0.00017999,2]
[403763447,1769523149930,-500.0,0.00017999,2]
[403763448,1769523149939,-500.0,0.00017999,2]
[403763449,1769523149948,-500.0,0.00017999,2]
[403763450,1769523149958,-151.0,0.00018,2]
[403763451,1769523149967,-151.0,0.00018,2]
[403763452,1769523149976,-224.592028,0.00018,2]
[403763453,1769523149985,-151.0,0.00018,2]
[403763454,1769523149995,-160.718716,0.00018,2]
[403763455,1769523150005,-1000.0,0.00018306,2]
[403763456,1769523150014,-2541.26250163,0.00019,2]
[403763457,1769523150024,-151.0,0.00019178,2]
[403763458,1769523150034,-151.0,0.00019178,2]
[403763459,1769523150043,-154.25,0.00020548,2]
[403763460,1769523150057,-151.0,0.00021918,2]
[403763461,1769523150066,-252.26255728,0.00021973,2]
[403763462,1769523150076,-500.0,0.00021973,2]
[403763463,1769523150085,-1000.0,0.00022521,2]
[403763464,1769523150097,-483.49053996,0.00023068,2]
[403763465,1769523150106,-5876.91,0.00023157,2]
[403763466,1769523150116,-151.0,0.00024658,2]
[403763467,1769523150127,-150.99,0.00025786,2]
[403763468,1769523150136,-3115.0,0.00025958,2]
[403763469,1769523150146,-750.0,0.00027397,20]
[403763470,1769523150155,-300.0,0.00027397,2]
[403763471,1769523150165,-165.21,0.000296,14]
[403763472,1769523150174,-152.18170893,0.00033602,2]
[403763473,1769523150184,-171.154,0.00033752,2]
[403763474,1769523150193,-150.16,0.00033752,2]
[403763475,1769523150202,-272.463,0.00033752,2]
[403763476,1769523150211,-150.0,0.00033752,2]
[403763477,1769523150221,-150.0,0.00033752,2]
[403763478,1769523150231,-3477.0,0.00033752,2]
[403763479,1769523150240,-1340.335,0.00033752,2]
[403763480,1769523150250,-1408.0,0.00033752,2]
[403763481,1769523150264,-513.0,0.00033752,2]
[403763482,1769523150274,-303.251,0.00033752,2]
[403763483,1769523150284,-1287.961,0.00033752,2]
[403763484,1769523150294,-5876.91,0.00034938,2]
[403763485,1769523150303,-150.0,0.00036752,2]
[403763486,1769523150313,-150.0,0.00036752,2]
[403763487,1769523150322,-150.0,0.00036752,2]
[403763488,1769523150331,-150.0,0.00036752,2]
[403763489,1769523150341,-150.0,0.00036752,2]
[403763490,1769523150350,-1333.0,0.00036752,2]
[403763491,1769523150360,-1408.0,0.00036752,2]
[403763492,1769523150370,-3477.0,0.00036752,2]
[403763493,1769523150379,-513.0,0.00036752,2]
[403763494,1769523150389,-184.0,0.00036752,2]
[403763495,1769523150398,-1269.0,0.00036752,2]
[403763496,1769523150408,-2831.0,0.00037564,11]
[403763497,1769523150417,-2831.0,0.00037706,11]
[403763498,1769523150427,-151.0,0.00038356,120]
[403763499,1769523150436,-151.0,0.00038356,120]
[403763500,1769523150446,-2831.0,0.00038512,11]
[403763501,1769523150456,-638.57415772,0.00038557,2]
[403763502,1769523150466,-2831.0,0.00038844,11]
[403763503,1769523150476,-300.0,0.00039044,2]
[403763504,1769523150486,-300.0,0.00039044,2]
[403763505,1769523150495,-456.35570575,0.00039044,2]
[403763506,1769523150504,-515.84561609,0.00039044,2]
[403763507,1769523150514,-300.0,0.00039044,2]
[403763508,1769523150523,-150.0,0.00039752,2]
[403763509,1769523150533,-150.0,0.00039752,2]
[403763510,1769523150542,-1333.0,0.00039752,2]
[403763511,1769523150552,-1071.782,0.00039752,2]
[403763512,1769523150561,-3477.0,0.00039752,2]
[403763513,1769523150570,-513.0,0.00039752,2]
[403763514,1769523150964,-1269.0,0.00039752,2]
[403763515,1769523150974,-184.0,0.00039752,2]
[403763516,1769523150984,-151.0,0.00039752,120]
[403763517,1769523150994,-151.0,0.00039752,120]
[403763518,1769523151003,-2831.0,0.00040163,11]
[403763519,1769523151012,-2323.0,0.0004071,11]
[403763520,1769523151021,-2831.0,0.00041525,11]
[403763521,1769523151030,-151.0,0.00041762,120]
[403763522,1769523151039,-151.0,0.00041762,120]
[403763523,1769523151048,-2831.0,0.00042031,16]
[403763524,1769523151058,-2831.0,0.00042043,16]
[403763525,1769523151069,-9046.0,0.00042048,30]
[403763526,1769523151078,-2831.0,0.00042165,16]
[403763527,1769523151087,-9046.0,0.00042481,30]
[403763528,1769523151097,-2831.0,0.00042485,16]
[403763529,1769523151107,-2831.0,0.00042671,16]
[403763530,1769523151116,-2831.0,0.00042671,16]
[403763531,1769523151126,-1333.0,0.00042752,2]
[403763532,1769523151137,-3477.0,0.00042752,2]
[403763533,1769523151148,-513.0,0.00042752,2]
[403763534,1769523151158,-1269.0,0.00042752,2]
[403763535,1769523151168,-184.0,0.00042752,2]
[403763536,1769523151178,-500.0,0.00042876,120]
[403763537,1769523151188,-9046.0,0.00042915,30]
[403763538,1769523151198,-2831.0,0.00042987,16]
[403763539,1769523151208,-2831.0,0.00042992,16]
[403763540,1769523151220,-1159.3356,0.00043161,3]
[403763541,1769523151230,-1547199.61275142,0.00043178,30]
[403763542,1769523151240,-377.0,0.00043178,2]
[403763543,1769523151250,-638.57415772,0.000432,10]
[403763544,1769523151259,-169.934167,0.000432,120]
[403763545,1769523151268,-151.0,0.000432,120]
[403763546,1769523151278,-151.0,0.000432,120]
[403763547,1769523151288,-151.0,0.000432,120]
[403763548,1769523151298,-151.0,0.000432,120]
[403763549,1769523151307,-151.0,0.000432,120]
[403763550,1769523151318,-69014.71899634,0.000432,2]
[403763551,1769523151329,-377.0,0.00043203,2]
[403763552,1769523151338,-377.0,0.00043224,2]
[403763553,1769523151348,-377.0,0.00043232,2]
[403763554,1769523151357,-377.0,0.00043251,2]
[403763555,1769523151366,-386.0,0.00043255,2]
[403763556,1769523151376,-377.0,0.00043266,2]
[403763557,1769523151386,-377.0,0.00043276,2]
[403763558,1769523151395,-377.0,0.00043285,2]
[403763559,1769523151405,-377.0,0.00043286,2]
[403763560,1769523151415,-151.0,0.000433,120]
[403763561,1769523151424,-255.5,0.00043324,2]
[403763562,1769523151433,-377.0,0.00043333,2]
[403763563,1769523151443,-150.30904993,0.00043335,2]
[403763564,1769523151452,-150.34858054,0.00043345,2]
[403763565,1769523151462,-9046.0,0.00043348,30]
[403763566,1769523151471,-386.0,0.0004335,2]
[403763567,1769523151481,-386.0,0.00043362,2]
[403763568,1769523151490,-377.0,0.00043367,2]
[403763569,1769523151499,-150.0,0.0004337,30]
[403763570,1769523151509,-484.83,0.0004337,30]
[403763571,1769523151519,-484.83,0.0004337,30]
[403763572,1769523151528,-484.83,0.0004337,30]
[403763573,1769523151538,-484.83,0.0004337,30]
[403763574,1769523151547,-484.83,0.0004337,30]
[403763575,1769523151556,-484.83,0.0004337,30]
[403763576,1769523151566,-484.83,0.0004337,30]
[403763577,1769523151576,-484.83,0.0004337,30]
[403763578,1769523151585,-484.83,0.0004337,30]
[403763579,1769523151595,-484.83,0.0004337,30]
[403763580,1769523151606,-484.83,0.0004337,30]
[403763581,1769523151615,-484.83,0.0004337,30]
[403763582,1769523151626,-484.83,0.0004337,30]
[403763583,1769523151636,-484.83,0.0004337,30]
[403763584,1769523151645,-613.23,0.0004337,30]
[403763585,1769523151654,-468.31,0.0004337,30]
[403763586,1769523151663,-613.23,0.0004337,30]
[403763587,1769523151672,-613.23,0.0004337,30]
[403763588,1769523151682,-150.0,0.0004337,30]
[403763589,1769523151691,-150.0,0.0004337,30]
[403763590,1769523151700,-150.0,0.0004337,30]
[403763591,1769523151710,-613.23,0.0004337,30]
[403763592,1769523151719,-389.16,0.0004337,30]
[403763593,1769523151728,-613.23,0.0004337,30]
[403763594,1769523151737,-590.65,0.0004337,30]
[403763595,1769523151747,-377.0,0.00043371,2]
[403763596,1769523151756,-386.0,0.00043372,2]
[403763597,1769523151766,-386.0,0.00043374,2]
[403763598,1769523151776,-377.0,0.00043376,2]
[403763599,1769523151788,-36797.683206,0.00043378,2]
[403763600,1769523151799,-4240.8304438,0.00043378,2]
[403763601,1769523151809,-11844.8634262,0.00043378,2]
[403763602,1769523151818,-15538.8887207,0.00043378,2]
[403763603,1769523151827,-1266.0,0.00043378,14]
[403763604,1769523151836,-1266.0,0.00043378,14]
[403763605,1769523151845,-1266.0,0.00043378,14]
[403763606,1769523151854,-1266.0,0.00043378,14]
[403763607,1769523151863,-1266.0,0.00043378,14]
[403763608,1769523151872,-1266.0,0.00043378,14]
[403763609,1769523151881,-1266.0,0.00043378,14]
[403763610,1769523151890,-45599.5340936,0.00043378,2]
[403763611,1769523151899,-177.44011839,0.00043378,7]
[403763612,1769523151908,-135751.14743167,0.00043378,30]
[403763613,1769523151919,-135751.14743167,0.00043378,30]
[403763614,1769523151930,-135751.14743167,0.00043378,30]
[403763615,1769523151939,-135751.14743167,0.00043378,30]
[403763616,1769523151949,-2541.26250163,0.00043387,30]
[403763617,1769523151958,-2541.26250163,0.00043387,30]
[403763618,1769523151967,-2332204.17668128,0.00043388,10]
[403763619,1769523151982,-1256.38003316,0.00043388,10]
[403763620,1769523151994,-966.59485592,0.00043388,10]
[403763621,1769523152006,-505.60542929,0.00043388,10]
[403763622,1769523152017,-372.34049029,0.00043388,10]
[403763623,1769523152032,-1422.23514811,0.00043388,10]
[403763624,1769523152043,-539.63574858,0.00043388,10]
[403763625,1769523152057,-410.92804495,0.00043388,10]
[403763626,1769523152095,-1010.99069514,0.00043388,10]
[403763627,1769523152137,-534755.81605259,0.00043388,10]
[403763628,1769523152168,-41543.11085264,0.00043388,10]
[403763629,1769523152179,-38003.21440433,0.00043388,10]
[403763630,1769523152190,-1103810.89800914,0.00043388,10]
[403763631,1769523152228,1304.41,0.00013716,2]
[403763632,1769523152246,-5528.11563955,0.00043388,10]
[403763633,1769523152257,-419906.35579098,0.00043388,10]
[403763634,1769523152267,-51983.42794781,0.00043388,10]
[403763635,1769523152278,-11177.99915104,0.00043388,10]
[403763636,1769523152288,-1837.76316966,0.00043388,10]
[403763637,1769523152879,300.60560622,0.00014053,2]
[403763638,1769523152901,566.26439378,0.00014053,2]
[403763639,1769523152939,500.0,0.00012514,2]
[403763640,1769523153005,517.0,0.00018,31]
[403763641,1769523153517,451.81375119,0.00014141,2]
[403763642,1769523153558,1807.0,0.00014051,2]
[403763643,1769523153598,693.0,0.00014079,2]
[403763644,1769523153651,150.0,0.00014052,2]
[403763645,1769523153697,300.0,0.00012514,2]
[403763646,1769523153732,300.0,0.00011945,2]
[403763647,1769523153780,303.5791788,0.00013058,2]
[403763648,1769523153837,193.0,0.00012514,2]
[403763649,1769523154118,250.0,0.00012514,2]
[403763650,1769523154154,250.0,0.00011945,2]
[403763651,1769523154195,161.5936106,0.00013058,2]
[403763652,1769523154218,116.80651547,0.00013058,2]
[403763653,1769523155853,-150.00165451,0.00014735,2]
[403763654,1769523165434,-250.0,0.00015176,2]
[403763655,1769523180974,-531.24428347,0.00015344,2]
[403763656,1769523183092,181.72889072,0.00014699,2]
[403763657,1769523183131,263.13403994,0.00014141,2]
[403763658,1769523183542,451.81375119,0.00014141,2]
[403763659,1769523184627,511.0,0.00018,31]
[403763660,1769523193625,-390.55936865,0.00015325,2]
[403763661,1769523195170,-361.14335297,0.00015325,2]
[403763662,1769523195983,500.0,0.00014141,2]
[403763663,1769523196032,500.0,0.00014141,2]
[403763664,1769523196070,500.0,0.00014141,2]
[403763665,1769523196104,647.83954011,0.00014141,2]
[403763666,1769523196167,500.0,0.00014141,2]
[403763667,1769523196197,500.0,0.00014141,2]
[403763668,1769523196227,500.0,0.00014141,2]
[403763669,1769523196264,500.0,0.00014141,2]
[403763670,1769523196294,500.0,0.00014141,2]
[403763671,1769523196336,193.82783315,0.00014141,2]
[403763672,1769523196382,500.0,0.00014141,2]
[403763673,1769523196411,500.0,0.00014141,2]
[403763674,1769523196476,232.66670944,0.00014141,2]
[403763675,1769523196513,500.0,0.00014141,2]
[403763676,1769523196548,500.0,0.00014141,2]
[403763677,1769523196582,500.0,0.00014141,2]
[403763678,1769523197114,-241.09192871,0.00015324,2]
[403763679,1769523197141,-60.90807129,0.00015324,2]
[403763680,1769523199307,-174.40514474,0.00015324,2]
[403763681,1769523199332,-75.59485526,0.00015325,2]
[403763682,1769523203795,596.98011518,0.00014141,2]
[403763683,1769523203832,596.98011518,0.00014141,2]
[403763684,1769523203865,596.98011518,0.00014141,2]
[403763685,1769523203901,596.98011518,0.00014141,2]
[403763686,1769523203943,37.75545658,0.00014141,2]
[403763687,1769523203968,559.2246586,0.00014141,2]
[403763688,1769523204001,596.98011518,0.00014141,2]
[403763689,1769523204039,596.98011518,0.00014141,2]
[403763690,1769523204077,596.98011518,0.00014141,2]
[403763691,1769523204117,596.98011518,0.00014141,2]
[403763692,1769523204157,596.98011518,0.00014141,2]
[403763693,1769523204191,596.98011518,0.00014141,2]
[403763694,1769523204585,596.98011518,0.00014141,2]
[403763695,1769523204627,596.98011518,0.00014141,2]
[403763696,1769523204680,596.98011518,0.00014141,2]
[403763697,1769523204714,596.98011518,0.00014141,2]
[403763698,1769523204747,596.98011518,0.00014141,2]
[403763699,1769523204787,596.98011518,0.00014141,2]
[403763700,1769523204822,596.98011518,0.00014141,2]
[403763701,1769523204856,596.98011518,0.00014141,2]
[403763702,1769523204891,596.98011518,0.00014141,2]
[403763703,1769523204928,486.0836137,0.00014141,2]
[403763704,1769523204954,110.89650148,0.00014141,2]
[403763705,1769523204987,596.98011518,0.00014141,2]
[403763706,1769523205019,596.98011518,0.00014141,2]
[403763707,1769523205051,596.98011518,0.00014141,2]
[403763708,1769523205086,596.98011518,0.00014141,2]
[403763709,1769523205120,596.98011518,0.00014141,2]
[403763710,1769523205156,596.98011518,0.00014141,2]
[403763711,1769523205192,596.98011518,0.00014141,2]
[403763712,1769523205225,596.98011518,0.00014141,2]
[403763713,1769523205258,596.98011518,0.00014141,2]
[403763714,1769523205300,596.98011518,0.00014141,2]
[403763715,1769523205333,596.98011518,0.00014141,2]
[403763716,1769523205365,596.98011518,0.00014141,2]
[403763717,1769523205402,596.98011518,0.00014141,2]
[403763718,1769523205440,596.98011518,0.00014141,2]
[403763719,1769523205473,596.98011518,0.00014141,2]
[403763720,1769523205514,596.98011518,0.00014141,2]
[403763721,1769523205562,156.98510113,0.00014141,2]
[403763722,1769523205588,337.43165564,0.00014141,2]
[403763723,1769523205612,102.56335841,0.00014141,2]
[403763724,1769523205645,596.98011518,0.00014141,2]
[403763725,1769523205677,596.98011518,0.00014141,2]
[403763726,1769523205714,596.98011518,0.00014141,2]
[403763727,1769523205747,596.98011518,0.00014141,2]
[403763728,1769523205780,596.98011518,0.00014141,2]
[403763729,1769523205813,596.98011518,0.00014141,2]
[403763730,1769523205849,596.98011518,0.00014141,2]
[403763731,1769523205885,596.98011518,0.00014141,2]
[403763732,1769523205919,596.98011518,0.00014141,2]
[403763733,1769523206323,596.98011518,0.00014141,2]
[403763735,1769523253959,-268.06489887,0.00015243,2]
[403763736,1769523255706,-821.94509455,0.00015243,2]
[403763737,1769523258389,-165.26725566,0.00015243,2]
[403763739,1769523278206,604.44236662,0.00014141,2]
[403763740,1769523278279,604.44236662,0.00014141,2]
[403763741,1769523278330,604.44236662,0.00014141,2]
[403763742,1769523278374,604.44236662,0.00014141,2]
[403763743,1769523278415,604.44236662,0.00014141,2]
[403763744,1769523278466,604.44236662,0.00014141,2]
[403763745,1769523278511,300.99129007,0.00014141,2]
[403763746,1769523278537,303.45107655,0.00014141,2]
[403763747,1769523278578,604.44236662,0.00014141,2]
[403763748,1769523278616,604.44236662,0.00014141,2]
[403763749,1769523278659,604.44236662,0.00014141,2]
[403763750,1769523278691,604.44236662,0.00014141,2]
[403763751,1769523278744,604.44236662,0.00014141,2]
[403763752,1769523278815,604.44236662,0.00014141,2]
[403763753,1769523278850,604.44236662,0.00014141,2]
[403763754,1769523278885,604.44236662,0.00014141,2]
[403763755,1769523278922,604.44236662,0.00014141,2]
[403763756,1769523278963,604.44236662,0.00014141,2]
[403763757,1769523279136,604.44236662,0.00014141,2]
[403763758,1769523279176,604.44236662,0.00014141,2]
[403763759,1769523279210,604.44236662,0.00014141,2]
[403763760,1769523279243,604.44236662,0.00014141,2]
[403763761,1769523279280,604.44236662,0.00014141,2]
[403763762,1769523279319,604.44236662,0.00014141,2]
[403763763,1769523279361,25.48105753,0.00014141,2]
[403763764,1769523279388,578.96130909,0.00014141,2]
[403763765,1769523279427,604.44236662,0.00014141,2]
[403763766,1769523279477,604.44236662,0.00014141,2]
[403763767,1769523279511,604.44236662,0.00014141,2]
[403763768,1769523279544,604.44236662,0.00014141,2]
[403763769,1769523279579,604.44236662,0.00014141,2]
[403763770,1769523279613,604.44236662,0.00014141,2]
[403763771,1769523279645,604.44236662,0.00014141,2]
[403763772,1769523279681,604.44236662,0.00014141,2]
[403763773,1769523279713,604.44236662,0.00014141,2]
[403763774,1769523328699,-203.91017388,0.00015243,2]
[403763775,1769523328727,-75.08982612,0.00015243,2]
[403763776,1769523344292,-409.34746218,0.00015243,2]
[403763777,1769523344315,-141.93481209,0.00015243,2]
[403763778,1769523345871,-373.69188948,0.00015243,2]
[403763779,1769523348240,-153.8599972,0.00015243,2]
[403763780,1769523351201,-383.43904151,0.00015243,2]
[403763781,1769523353775,-350.79647758,0.00015243,2]
[403763782,1769523355379,-189.91285581,0.00015243,2]
[403763783,1769523357553,-219.23544984,0.00015243,2]
[403763784,1769523360695,-170.56030923,0.00015243,2]
[403763785,1769523362675,-160.95252468,0.00015243,2]
[403763786,1769523364993,-254.30682026,0.00015243,2]
[403763787,1769523367585,-573.22499205,0.00015243,2]
[403763788,1769523369011,-357.84889641,0.00015243,2]
[403763789,1769523371139,-479.43231453,0.00015243,2]
[403763790,1769523373212,-403.37124599,0.00015243,2]
[403763791,1769523375247,-165.93834011,0.00015243,2]
[403763792,1769523376763,-472.55787541,0.00015243,2]
[403763793,1769523470361,-322.9581922,0.00015235,2]
[403763794,1769523470383,-50.25288877,0.00015243,2]
[403763795,1769523472403,-295.06693158,0.00015243,2]
[403763796,1769523474489,-162.06320131,0.00015243,2]
[403763797,1769523476610,-141.278061,0.00015243,2]
[403763798,1769523476633,-75.57304439,0.00015243,2]
[403763799,1769523484320,218.6863556,0.00015224,2]
[403763800,1769523493622,-177.2800995,0.00015235,2]
[403763802,1769523496732,-41.4062561,0.00015235,2]
[403763803,1769523496754,-83.11567902,0.00015243,2]
[403763804,1769523496777,-96.37974465,0.00015263,2]
[403763807,1769523523637,-192.72668879,0.00015235,2]
[403763808,1769523525256,-315.73649027,0.00015235,2]
[403763809,1769523527169,-248.65015944,0.00015235,2]
[403763810,1769523528662,-282.32205396,0.00015235,2]
[403763811,1769523533045,-717.15169276,0.00015235,2]
[403763812,1769523539859,1706.4995,0.00015225,2]
[403763813,1769523539956,-295.4201904,0.00015235,2]
[403763814,1769523541940,-225.08216547,0.00015234,2]
[403763815,1769523543660,-74.91783453,0.00015234,2]
[403763816,1769523543685,-205.4877696,0.00015235,2]
[403763817,1769523545843,-195.0,0.00015235,2]
[403763818,1769523547332,-244.04452484,0.00015235,2]
[403763819,1769523549280,-237.47072118,0.00015235,2]
[403763820,1769523550651,-203.84201728,0.00015235,2]
[403763821,1769523552436,-483.446138,0.00015235,2]
[403763822,1769523554845,-183.7866476,0.00015235,2]
[403763823,1769523559317,-303.35636368,0.00015235,2]
[403763824,1769523561896,-217.67794604,0.00015235,2]
[403763825,1769523563437,-303.6764657,0.00015235,2]
[403763826,1769523565400,-314.03538102,0.00015235,2]
[403763827,1769523568171,-373.58055191,0.00015235,2]
[403763828,1769523573536,-167.10986205,0.00015235,2]
[403763829,1769523575143,-245.00556981,0.00015235,2]
[403763830,1769523577792,-241.50529993,0.00015235,2]
[403763831,1769523579327,-211.06256738,0.00015235,2]
[403763832,1769523583908,-228.42331248,0.00015235,2]
[403763833,1769523586589,-240.68893856,0.00015235,2]
[403763834,1769523589253,-164.28777937,0.00015235,2]
[403763835,1769523591340,-308.81049488,0.00015235,2]
[403763836,1769523592843,-226.78891903,0.00015235,2]